bitfinex/quotes_ETHUSD_20250920
["timestamp","ask_amount","ask_price","bid_price","bid_amount"]
[1758402364189,6.98301856,4493.6,4493.5,0.001]
[1758402365993,10.67101856,4493.6,4493.5,0.001]
[1758402372181,10.67046195,4493.6,4493.5,0.001]
[1758402373005,10.54571323,4493.6,4493.5,0.001]
[1758402373211,10.67045174,4493.6,4493.5,0.001]
[1758402376205,10.46205191,4493.6,4493.5,0.001]
[1758402376414,10.66992973,4493.6,4493.5,0.001]
[1758402376795,11.72034788,4493.6,4493.5,0.001]
[1758402390010,11.48074788,4493.6,4493.5,0.2299]
[1758402390204,11.48274788,4493.6,4493.5,0.2299]
[1758402390994,11.48274788,4493.6,4493.5,0.001]
[1758402396231,7.00274788,4493.6,4493.5,0.001]
[1758402396529,10.43332973,4493.6,4493.5,0.2299]
[1758402403043,10.43332973,4493.6,4493.5,0.001]
[1758402403343,10.43332973,4493.6,4493.5,0.2299]
[1758402405520,10.43332973,4493.6,4493.5,0.001]
[1758402408728,10.67382322,4493.6,4493.5,0.001]
[1758402409239,10.43472322,4493.6,4493.5,0.001]
[1758402410614,10.67382322,4493.6,4493.5,0.001]
[1758402415514,10.43472322,4493.6,4493.5,0.001]
[1758402417657,10.67382322,4493.6,4493.5,0.001]
[1758402418155,10.43472322,4493.6,4493.5,0.001]
[1758402422767,10.43372322,4493.6,4493.5,0.001]
[1758402424531,12.35872322,4493.6,4493.5,0.001]
[1758402429175,8.67072322,4493.6,4493.5,0.001]
[1758402429673,12.35872322,4493.6,4493.5,0.001]
[1758402433876,8.67072322,4493.6,4493.5,0.001]
[1758402434077,12.35872322,4493.6,4493.5,0.001]
[1758402435744,12.35881128,4493.6,4493.5,0.001]
[1758402440679,8.67081128,4493.6,4493.5,0.001]
[1758402440984,12.35881128,4493.6,4493.5,0.001]
[1758402446366,12.60671128,4493.6,4493.5,0.001]
[1758402446568,12.35881128,4493.6,4493.5,0.001]
[1758402447992,12.35895818,4493.6,4493.5,0.001]
[1758402450964,12.35895818,4493.6,4493.5,0.2319]
[1758402451570,12.35895818,4493.6,4493.5,0.001]
[1758402451973,12.35894159,4493.6,4493.5,0.001]
[1758402453590,5.93039532,4493.6,4493.5,0.2319]
[1758402453905,5.94922819,4493.6,4493.5,0.2319]
[1758402454200,8.94922819,4493.6,4493.5,0.2319]
[1758402455367,5.94922819,4493.6,4493.5,0.2319]
[1758402456970,5.94922819,4493.6,4493.5,4.17829999]
[1758402457300,5.74033557,4493.6,4493.5,4.17829999]
[1758402474006,6.40948329,4493.6,4493.5,4.17829999]
[1758402481317,6.61811361,4493.6,4493.5,4.17829999]
[1758402484937,6.61811361,4493.6,4493.5,4.81928229]
[1758402484938,0.33596589,4493.6,4493.5,4.81928229]
[1758402485118,3.689,4493.6,4493.5,7.04471903]
[1758402486333,4.0576209,4493.6,4493.5,3.94739999]
[1758402497272,3.8142209,4493.6,4493.5,3.94739999]
[1758402498447,4.0594209,4493.6,4493.5,3.94739999]
[1758402499575,3.81420764,4493.6,4493.5,3.94739999]
[1758402502072,4.05940764,4493.6,4493.5,3.94739999]
[1758402504472,3.81420764,4493.6,4493.5,3.94739999]
[1758402504676,4.05940764,4493.6,4493.5,3.94739999]
[1758402505373,3.81420764,4493.6,4493.5,3.94739999]
[1758402506570,3.81420764,4493.6,4493.5,4.17459999]
[1758402506764,3.81420764,4493.6,4493.5,3.94739999]
[1758402511700,3.81424771,4493.6,4493.5,3.94739999]
[1758402518296,4.05944771,4493.6,4493.5,3.94739999]
[1758402519209,3.81424771,4493.6,4493.5,3.94739999]
[1758402528836,4.02312128,4493.6,4493.5,3.94739999]
[1758402530227,4.02312128,4493.6,4493.5,6.17283673]
[1758402532898,4.02312128,4493.6,4493.5,3.94739999]
[1758402542936,3.81424771,4493.6,4493.5,3.94739999]
[1758402546236,4.04724771,4493.6,4493.5,3.94739999]
[1758402548858,3.81424771,4493.6,4493.5,3.94739999]
[1758402549158,3.81424771,4493.6,4493.5,6.17283673]
[1758402549661,3.81424771,4493.6,4493.5,3.94739999]
[1758402555187,3.81424771,4493.6,4493.5,6.17283673]
[1758402556993,3.81424771,4493.6,4493.5,3.94739999]
[1758402557792,3.81424771,4493.6,4493.5,6.17283673]
[1758402560260,3.81424771,4493.6,4493.5,3.94739999]
[1758402569530,3.81224771,4493.6,4493.5,3.94739999]
[1758402574160,4.02106311,4493.6,4493.5,3.94739999]
[1758402579174,3.81224771,4493.6,4493.5,3.94739999]
[1758402580572,4.03854771,4493.6,4493.5,3.94739999]
[1758402580879,4.65284715,4493.6,4493.5,3.94739999]
[1758402586397,4.24739238,4493.6,4493.5,3.94739999]
[1758402589201,4.03854771,4493.6,4493.5,3.94739999]
[1758402594212,4.70769542,4493.6,4493.5,3.94739999]
[1758402600214,4.48139542,4493.6,4493.5,3.94739999]
[1758402601702,4.48143968,4493.6,4493.5,3.94739999]
[1758402605896,4.48144658,4493.6,4493.5,4.19669999]
[1758402608446,4.48144658,4493.6,4493.5,3.94739999]
[1758402622406,4.69032785,4493.6,4493.5,3.94739999]
[1758402626210,4.69032769,4493.6,4493.5,3.94739999]
[1758402630215,4.69035685,4493.6,4493.5,3.94739999]
[1758402642323,4.69035824,4493.6,4493.5,3.94739999]
[1758402654453,4.6903566,4493.6,4493.5,3.94739999]
[1758402660369,4.6903566,4493.6,4493.5,4.17969999]
[1758402663876,4.6903566,4493.6,4493.5,4.20195435]
[1758402664081,4.02120889,4493.6,4493.5,4.17969999]
[1758402664254,4.02120889,4493.6,4493.5,4.20195435]
[1758402664670,4.02120889,4493.6,4493.5,6.42739109]
[1758402664876,4.02120889,4493.6,4493.5,6.40513673]
[1758402666252,3.81232731,4493.6,4493.5,6.40513673]
[1758402680010,0.002,4493.6,4493.5,7.34361857]
[1758402680441,0.002,4493.6,4493.5,8.01265287]
[1758402681978,0.002,4493.6,4493.5,11.69665287]
[1758402686025,0.002,4493.6,4493.5,8.01265287]
[1758402697451,0.2407,4494.0,4493.9,6.15363864]
[1758402697652,0.002,4494.0,4493.9,6.15363864]
[1758402698149,0.002,4494.0,4493.9,6.82267294]
[1758402698446,0.2407,4494.0,4493.9,6.82267294]
[1758402702248,0.36588924,4494.0,4493.9,6.82267294]
[1758402714669,0.12718924,4494.0,4493.9,6.82267294]
[1758402714868,0.12718924,4494.0,4493.9,6.15363864]
[1758402738914,0.247,4494.2,4494.0,3.80121075]
[1758402739207,0.247,4494.2,4494.0,6.04865178]
[1758402739509,0.247,4494.2,4494.0,6.02639989]
[1758402751000,3.81031255,4494.1,4494.0,6.02639989]
[1758402757252,3.81030978,4494.1,4494.0,6.02639989]
[1758402773293,3.81031058,4494.1,4494.0,6.02639989]
[1758402773504,3.81031058,4494.1,4494.0,6.02739989]
[1758402780973,3.81031313,4494.1,4494.0,6.02739989]
[1758402790257,3.81031313,4494.1,4494.0,3.80221075]
[1758402791952,3.81031313,4494.1,4494.0,6.02739989]
[1758402792251,3.81031324,4494.1,4494.0,6.02739989]
[1758402802970,3.81031324,4494.1,4494.0,3.80221075]
[1758402803175,3.81031324,4494.1,4494.0,6.02739989]
[1758402812983,3.81031324,4494.1,4494.0,6.01280706]
[1758402817776,3.81031324,4494.1,4494.0,6.68184137]
[1758402825201,3.81031324,4494.1,4494.0,4.45665223]
[1758402825369,4.44957456,4494.1,4494.0,3.78761792]
[1758402825568,5.37664976,4494.1,4494.0,3.78761792]
[1758402825774,7.81065578,4494.1,4494.0,3.78761792]
[1758402828005,5.32753346,4494.1,4494.0,3.78761792]
[1758402840218,1.00527214,4494.1,4494.0,3.78761792]
[1758402840407,4.68627214,4494.1,4494.0,4.02491792]
[1758402840724,4.01691203,4494.1,4494.0,4.02491792]
[1758402841480,4.01691203,4494.1,4494.0,6.25010706]
[1758402841481,0.12721701,4494.1,4494.0,6.25010706]
[1758402841789,0.002,4494.6,4494.5,5.8783425]
[1758402842188,0.26814937,4496.3,4494.8,2.22479309]
[1758402842418,0.29757866,4496.2,4494.8,11.64504102]
[1758402842618,0.36341266,4496.3,4494.8,11.86009309]
[1758402842824,0.155,4496.3,4494.8,11.86109309]
[1758402843047,0.155,4496.3,4494.8,13.31533266]
[1758402843245,0.07,4496.1,4494.8,13.31533266]
[1758402847814,0.08915368,4496.5,4494.8,13.31533266]
[1758402848058,0.615,4496.5,4494.8,13.31533266]
[1758402848253,0.70415367,4496.5,4494.8,13.31533266]
[1758402848762,0.70415367,4496.5,4494.8,23.97873357]
[1758402850383,0.08915367,4496.5,4494.8,23.97873357]
[1758402850536,0.08915367,4496.5,4494.8,13.31533266]
[1758402850739,0.31675367,4496.5,4494.8,13.31533266]
[1758402851445,0.2276,4496.4,4494.8,13.31533266]
[1758402852856,1.935,4496.9,4494.9,3.792]
[1758402853173,0.08915089,4496.8,4495.8,2.22429823]
[1758402853356,0.2276,4496.6,4495.8,6.12872805]
[1758402853555,0.2276,4496.6,4495.8,6.37262805]
[1758402854053,1.935,4496.9,4495.8,6.37262805]
[1758402854234,0.2388,4496.5,4495.8,6.37262805]
[1758402855365,0.2388,4496.7,4495.8,6.37262805]
[1758402855569,1.935,4496.9,4495.8,6.37262805]
[1758402855764,0.2388,4496.6,4495.8,6.37262805]
[1758402857169,1.935,4496.9,4495.8,6.37262805]
[1758402857380,0.2388,4496.5,4495.8,6.37262805]
[1758402857752,1.935,4496.9,4495.8,6.37262805]
[1758402857958,0.2388,4496.8,4495.8,9.37262805]
[1758402858569,0.012,4495.9,4495.8,9.37262805]
[1758402865989,0.2408,4496.8,4496.7,3.40060091]
[1758402866153,0.002,4496.8,4496.7,7.08160091]
[1758402866353,0.2408,4496.8,4496.7,7.08160091]
[1758402867561,0.2408,4496.8,4496.7,8.514641]
[1758402867757,0.002,4496.8,4496.7,7.32240091]
[1758402868008,0.002,4496.8,4496.7,9.54625395]
[1758402868161,0.002,4496.8,4496.7,13.58575395]
[1758402869378,0.002,4496.8,4496.7,9.90475395]
[1758402870075,0.002,4496.8,4496.7,13.59375395]
[1758402870277,0.002,4496.8,4496.7,15.36782238]
[1758402874929,0.2388,4497.7,4496.8,9.4144045]
[1758402875138,0.2388,4497.7,4496.8,9.6619045]
[1758402875809,0.2388,4497.7,4496.8,10.10599663]
[1758402876902,0.002,4497.3,4496.8,10.10599663]
[1758402878402,0.002,4497.3,4496.8,17.11599663]
[1758402878698,0.002,4497.3,4496.8,19.31527307]
[1758402880367,2.23278095,4498.9,4498.2,3.37460091]
[1758402880525,2.23278095,4498.9,4497.1,2.22365475]
[1758402880526,0.12448181,4498.8,4498.3,7.08383153]
[1758402880727,0.01,4498.9,4498.4,3.37460091]
[1758402880964,0.2388,4498.8,4498.5,3.71022963]
[1758402881141,0.2388,4498.7,4498.5,3.71022963]
[1758402881466,0.01,4498.9,4498.5,3.688]
[1758402881467,0.2388,4498.6,4498.5,3.688]
[1758402884268,0.2388,4498.6,4498.3,4.27528406]
[1758402884568,0.2275,4498.5,4498.3,4.27528406]
[1758402884773,0.01,4498.9,4498.4,3.688]
[1758402885467,0.2275,4498.8,4498.4,1.01863946]
[1758402885768,0.2275,4498.7,4498.5,3.688]
[1758402885969,0.2275,4498.6,4498.5,3.688]
[1758402886368,0.2275,4498.6,4498.5,7.06260091]
[1758402886730,0.2275,4498.6,4498.5,3.37460091]
[1758402886932,0.2275,4498.6,4498.5,7.06160091]
[1758402887949,0.2275,4498.8,4498.5,7.85782932]
[1758402888132,0.01,4498.9,4498.5,7.85782932]
[1758402888333,0.2275,4498.8,4498.5,7.85782932]
[1758402888570,0.2275,4498.7,4498.5,7.85782932]
[1758402888768,0.2275,4498.6,4498.5,7.85782932]
[1758402892340,0.2275,4498.6,4498.5,3.37460091]
[1758402892547,0.2275,4498.6,4498.5,7.06060091]
[1758402892749,0.89572511,4498.6,4498.5,7.06060091]
[1758402893187,2.22276149,4499.0,4498.9,2.4688758]
[1758402893486,2.89104466,4499.0,4498.9,6.1558758]
[1758402894699,2.22276149,4499.0,4498.9,6.1558758]
[1758402895190,2.45026149,4499.0,4498.9,6.1558758]
[1758402896793,2.22276149,4499.0,4498.9,6.1558758]
[1758402897109,2.45026149,4499.0,4498.9,6.1558758]
[1758402897455,0.12483803,4499.0,4498.9,6.1558758]
[1758402898273,0.12490963,4499.0,4498.9,6.1558758]
[1758402898868,0.35240963,4499.0,4498.9,6.1558758]
[1758402899283,0.2275,4499.0,4498.9,6.1558758]
[1758402899701,0.002,4499.1,4498.9,6.1558758]
[1758402899866,0.2295,4499.1,4498.9,6.1558758]
[1758402900068,2.45217599,4499.1,4498.9,6.1558758]
[1758402900311,0.2295,4499.1,4498.9,6.1558758]
[1758402901378,0.002,4499.1,4498.9,2.4688758]
[1758402901577,0.002,4499.1,4499.0,3.686]
[1758402902630,0.002,4499.1,4499.0,6.17710296]
[1758402902831,0.002,4499.1,4499.0,6.1548758]
[1758402904937,2.22466675,4499.1,4499.0,2.4688758]
[1758402905141,2.82608763,4499.1,4499.0,2.4688758]
[1758402906102,3.03441351,4499.1,4499.0,2.4688758]
[1758402909046,2.22306307,4498.3,4498.1,2.4688758]
[1758402909334,0.2309,4498.3,4498.1,2.4688758]
[1758402909542,2.22295401,4498.6,4498.1,2.4688758]
[1758402910360,2.45385401,4498.6,4498.1,2.4688758]
[1758402911031,2.45385401,4498.6,4498.1,2.4911074]
[1758402911856,2.45385401,4498.6,4498.1,2.4688758]
[1758402912273,2.22297624,4498.5,4498.1,2.4688758]
[1758402912656,2.22297624,4498.5,4498.1,2.4698758]
[1758402913142,2.45382445,4498.6,4498.1,2.4698758]
[1758402913515,2.22297021,4498.5,4498.1,2.4698758]
[1758402913730,2.45382733,4498.6,4498.1,2.4698758]
[1758402913957,2.45382733,4498.6,4498.2,2.4688758]
[1758402914132,3.687,4498.9,4498.3,3.71123062]
[1758402914318,0.12495398,4498.8,4498.3,3.71123062]
[1758402914518,2.59296347,4498.7,4498.3,3.71123062]
[1758402914755,2.46800949,4498.7,4498.3,3.71123062]
[1758402916752,2.22276665,4498.9,4498.3,3.71123062]
[1758402917054,2.4679769,4498.7,4498.3,3.71123062]
[1758402917256,2.22292463,4498.6,4498.3,3.71123062]
[1758402917557,2.46799043,4498.7,4498.3,3.71123062]
[1758402917985,2.22293096,4498.6,4498.3,3.71123062]
[1758402918280,2.22291502,4498.6,4498.3,3.71123062]
[1758402918480,2.2229316,4498.6,4498.3,0.02223062]
[1758402918669,2.2229316,4498.6,4498.4,3.689]
[1758402918871,2.22287155,4498.7,4498.4,3.689]
[1758402919286,2.22292052,4498.6,4498.4,3.689]
[1758402919642,0.2451,4498.8,4498.4,3.689]
[1758402919837,2.2229632,4498.5,4498.4,3.689]
[1758402920666,2.2229632,4498.5,4498.1,0.001]
[1758402920868,2.2229632,4498.5,4498.3,3.689]
[1758402921338,2.22287122,4498.7,4498.3,3.689]
[1758402921538,0.2451,4498.6,4498.3,3.689]
[1758402921980,2.22301262,4498.4,4498.3,3.689]
[1758402922183,2.22297754,4498.5,4498.3,3.689]
[1758402922359,0.2451,4498.6,4498.3,3.689]
[1758402923146,2.59297052,4498.6,4498.3,3.689]
[1758402923347,2.46802452,4498.6,4498.3,3.689]
[1758402923890,0.2451,4498.6,4498.3,3.689]
[1758402924281,2.22301262,4498.4,4498.3,3.689]
[1758402924674,0.24754857,4499.1,4498.1,0.001]
[1758402924860,2.22311146,4498.2,4498.1,0.001]
[1758402925049,2.34806178,4498.2,4498.1,0.001]
[1758402925257,2.59316178,4498.2,4498.1,0.001]
[1758402928770,2.59316178,4498.2,4498.1,4.231]
[1758402933317,2.80123802,4498.2,4498.1,4.231]
[1758402933518,3.583998,4498.2,4498.1,4.231]
[1758402936208,3.583998,4498.2,4498.1,0.001]
[1758402940911,3.338898,4498.2,4498.1,0.001]
[1758402943152,3.21394768,4498.2,4498.1,0.001]
[1758402943451,3.33883312,4498.2,4498.1,0.001]
[1758402951357,3.21397249,4498.2,4498.1,0.001]
[1758402951659,3.33897609,4498.2,4498.1,0.001]
[1758402955422,3.33916053,4498.2,4498.1,4.231]
[1758402959017,3.56686053,4498.2,4498.1,4.231]
[1758402959533,3.33916053,4498.2,4498.1,4.231]
[1758402962830,3.56686053,4498.2,4498.1,4.231]
[1758402963026,3.33916053,4498.2,4498.1,4.231]
[1758402964940,6.58696053,4498.2,4498.1,4.231]
[1758402968190,6.33916053,4498.2,4498.1,0.244]
[1758402968381,9.24240055,4498.2,4498.1,0.244]
[1758402970594,6.24340055,4498.2,4498.1,0.244]
[1758402972289,6.24240055,4498.2,4498.1,0.244]
[1758402977201,2.55640055,4498.2,4498.1,0.244]
[1758402977440,6.24240055,4498.2,4498.1,0.244]
[1758402981789,6.24140055,4498.2,4498.1,0.244]
[1758402982487,6.24165671,4498.2,4498.1,0.244]
[1758402986784,6.24170368,4498.2,4498.1,0.244]
[1758402988179,6.24170368,4498.2,4498.1,4.474]
[1758402990834,2.55670368,4498.2,4498.1,4.474]
[1758402991029,6.24070368,4498.2,4498.1,4.474]
[1758402991195,4.01759222,4498.2,4498.1,4.82362593]
[1758402991400,3.80909708,4498.2,4498.1,4.82362593]
[1758402991923,2.34820854,4498.2,4498.1,4.82362593]
[1758402992096,6.03320854,4498.2,4498.1,4.82362593]
[1758402993187,6.03320854,4498.2,4498.1,4.231]
[1758402993416,6.2415964,4498.2,4498.1,4.231]
[1758402996934,6.4849964,4498.2,4498.1,4.231]
[1758402997105,6.4849964,4498.2,4498.1,0.001]
[1758402998023,6.48500904,4498.2,4498.1,0.001]
[1758402998927,9.48500904,4498.2,4498.1,0.001]
[1758402999145,2.22325974,4497.9,4497.8,0.001]
[1758402999308,9.24875732,4497.9,4497.8,0.001]
[1758402999504,2.22345747,4497.5,4497.4,1e-08]
[1758402999807,11.17195505,4497.5,4497.4,1e-08]
[1758403000007,11.41535505,4497.5,4497.4,1e-08]
[1758403000413,11.50450992,4497.5,4497.4,1e-08]
[1758403002743,11.29607393,4497.5,4497.4,1e-08]
[1758403002952,11.50420521,4497.5,4497.4,1e-08]
[1758403005540,11.50392689,4497.5,4497.4,1e-08]
[1758403011804,11.26052689,4497.5,4497.4,1e-08]
[1758403013568,11.49542689,4497.5,4497.4,1e-08]
[1758403015009,11.26052689,4497.5,4497.4,1e-08]
[1758403024136,11.26252689,4497.5,4497.4,1e-08]
[1758403031644,11.26252689,4497.5,4497.0,0.001]
[1758403031645,2.22365524,4497.1,4497.0,0.001]
[1758403031832,2.22385304,4496.7,4496.2,0.2447]
[1758403032033,6.24676759,4496.7,4496.2,0.2447]
[1758403033561,6.24676759,4496.7,4495.4,3.69]
[1758403033864,6.24676759,4496.7,4496.3,0.2447]
[1758403034767,6.24676759,4496.7,4495.4,3.69]
[1758403034968,6.24676759,4496.7,4496.4,0.2413]
[1758403042757,6.24676759,4496.7,4496.6,4.231]
[1758403044887,6.24676759,4496.7,4496.6,0.001]
[1758403046188,6.24723165,4496.7,4496.6,0.001]
[1758403047386,6.83081576,4496.7,4496.6,0.001]
[1758403050200,6.83082223,4496.7,4496.6,0.001]
[1758403054625,8.75482223,4496.7,4496.6,0.001]
[1758403058430,8.75491182,4496.7,4496.6,0.001]
[1758403079750,11.75491182,4496.7,4496.6,0.001]
[1758403082247,11.75531136,4496.7,4496.6,0.001]
[1758403083650,5.2239025,4496.6,4496.1,0.011]
[1758403083853,6.00250115,4496.6,4496.1,0.011]
[1758403084148,2.22410035,4496.2,4496.1,0.011]
[1758403084329,9.24397456,4496.2,4496.1,0.011]
[1758403091982,9.24397456,4496.2,4496.1,0.2398]
[1758403092795,5.55797456,4496.2,4496.1,0.2398]
[1758403092965,9.24297456,4496.2,4496.1,0.2398]
[1758403100929,5.55797456,4496.2,4496.1,0.2398]
[1758403101114,9.24297456,4496.2,4496.1,0.2398]
[1758403101429,6.24297456,4496.2,4496.1,0.2398]
[1758403101631,0.33387421,4496.2,4496.1,0.2398]
[1758403101810,4.01987421,4496.2,4496.1,0.2398]
[1758403102356,6.24397456,4496.2,4496.1,0.011]
[1758403102557,2.55797456,4496.2,4496.1,0.2382]
[1758403102739,6.24397456,4496.2,4496.1,0.2382]
[1758403106841,6.24397456,4496.2,4496.1,4.4682]
[1758403110330,6.24397456,4496.2,4496.1,0.2382]
[1758403115027,4.01987421,4496.2,4496.1,0.2382]
[1758403115239,6.24397456,4496.2,4496.1,0.2382]
[1758403117846,6.24359249,4496.2,4496.1,0.2382]
[1758403118078,6.24359249,4496.2,4496.1,0.011]
[1758403118769,6.24359249,4496.2,4496.1,0.2382]
[1758403120143,4.01949214,4496.2,4496.1,0.2382]
[1758403120347,6.24359249,4496.2,4496.1,0.2382]
[1758403124613,6.24359249,4496.2,4496.1,4.4682]
[1758403127211,6.24359249,4496.2,4496.1,4.241]
[1758403130112,6.24392878,4496.2,4496.1,4.241]
[1758403134134,6.24411008,4496.2,4496.1,4.241]
[1758403135726,6.24411008,4496.2,4496.1,4.4821]
[1758403137640,2.55811008,4496.2,4496.1,4.4821]
[1758403137840,6.24211008,4496.2,4496.1,4.4821]
[1758403138204,6.24211008,4496.2,4496.1,4.241]
[1758403140132,0.33400973,4496.2,4496.1,4.93031]
[1758403140315,4.01800973,4496.2,4496.1,4.93031]
[1758403141138,4.01800973,4496.2,4496.1,4.4821]
[1758403142621,4.01800973,4496.2,4496.1,4.241]
[1758403142940,6.24211008,4496.2,4496.1,4.241]
[1758403147769,6.48571008,4496.2,4496.1,4.241]
[1758403150902,6.24211008,4496.2,4496.1,4.241]
[1758403161902,4.01800973,4496.2,4496.1,4.241]
[1758403162109,6.24211008,4496.2,4496.1,4.241]
[1758403163217,4.01800973,4496.2,4496.1,4.241]
[1758403163806,6.24211008,4496.2,4496.1,4.241]
[1758403164102,4.01800973,4496.2,4496.1,4.241]
[1758403165328,6.24211008,4496.2,4496.1,4.241]
[1758403167536,4.01800973,4496.2,4496.1,4.241]
[1758403168443,6.24211008,4496.2,4496.1,4.241]
[1758403171522,4.01800973,4496.2,4496.1,4.241]
[1758403178453,3.89275608,4496.2,4496.1,4.241]
[1758403178644,4.01801612,4496.2,4496.1,4.241]
[1758403180848,0.33401612,4496.2,4496.1,4.241]
[1758403181055,4.01801612,4496.2,4496.1,4.4801]
[1758403181223,0.33401612,4496.2,4496.1,4.9042]
[1758403181423,0.12526004,4496.2,4496.1,6.58234981]
[1758403181624,2.861,4496.5,4496.4,2.22400142]
[1758403181824,0.12723234,4496.5,4496.4,3.34373654]
[1758403184223,0.002,4496.5,4496.4,3.34373654]
[1758403185467,0.002,4496.5,4496.4,4.13573654]
[1758403185830,0.002,4496.5,4496.4,4.82649203]
[1758403186027,0.002,4496.5,4496.4,4.80425202]
[1758403195242,0.002,4496.5,4496.4,4.13573654]
[1758403196176,0.002,4496.5,4496.4,7.81873654]
[1758403200920,0.002,4496.5,4496.4,3.89663654]
[1758403201080,0.002,4496.5,4496.4,7.57963654]
[1758403201522,0.002,4496.5,4496.4,7.81673654]
[1758403201828,0.002,4496.9,4496.7,4.228]
[1758403202000,0.002,4496.9,4496.8,4.32818533]
[1758403202710,0.2272,4496.9,4496.8,4.32818533]
[1758403203734,0.2272,4496.9,4496.8,0.64518533]
[1758403204029,0.002,4496.9,4496.8,0.64518533]
[1758403207593,0.002,4496.9,4496.8,4.87318533]
[1758403213228,0.12712242,4496.9,4496.8,4.87318533]
[1758403214932,0.12712242,4496.9,4496.8,4.228]
[1758403228865,0.12712242,4496.9,4496.8,4.4595]
[1758403230296,0.12712242,4496.9,4496.8,6.68330359]
[1758403245016,0.12718943,4496.9,4496.8,6.68330359]
[1758403247612,0.002,4496.9,4496.8,2.45530359]
[1758403247807,0.002,4496.9,4496.8,3.3138601]
[1758403263947,0.002,4496.9,4496.8,7.5418601]
[1758403264143,0.002,4496.9,4496.8,8.31162207]
[1758403277395,0.002,4496.9,4496.8,11.99362207]
[1758403277996,0.002,4496.9,4496.8,3.85212207]
[1758403278197,0.002,4496.9,4496.8,7.53412207]
[1758403285306,0.002,4496.9,4496.8,3.85212207]
[1758403285495,0.002,4496.9,4496.8,7.5563601]
[1758403285832,0.002,4496.9,4496.8,7.53412207]
[1758403288501,0.002,4496.9,4496.8,7.75982207]
[1758403290832,0.002,4496.9,4496.8,11.98782207]
[1758403297786,0.002,4496.9,4496.8,11.76212207]
[1758403298245,0.002,4496.9,4496.8,8.08012207]
[1758403298448,0.002,4496.9,4496.8,11.76112207]
[1758403301649,0.002,4496.9,4496.8,11.98682207]
[1758403302786,0.002,4496.9,4496.8,13.90982207]
[1758403304867,0.002,4496.9,4496.8,13.68412207]
[1758403308907,0.002,4496.9,4496.8,13.92562207]
[1758403309385,0.002,4496.9,4496.8,13.68412207]
[1758403310572,0.002,4496.9,4496.8,13.92562207]
[1758403312707,0.002,4496.9,4496.8,13.68412207]
[1758403319483,0.002,4496.9,4496.8,13.92562207]
[1758403320627,0.002,4496.9,4496.8,13.68412207]
[1758403328523,0.002,4496.9,4496.8,13.92682207]
[1758403329806,0.002,4496.9,4496.8,13.68412207]
[1758403331905,0.002,4496.9,4496.8,10.00312207]
[1758403332109,0.002,4496.9,4496.8,13.68412207]
[1758403336816,0.002,4496.9,4496.8,10.00312207]
[1758403337021,0.002,4496.9,4496.8,13.68412207]
[1758403355249,18.3863,4496.9,4496.8,12.84780359]
[1758403356477,18.152,4496.9,4496.8,12.84780359]
[1758403361522,18.152,4496.9,4496.8,9.16680359]
[1758403361718,18.3863,4496.9,4496.8,12.05580359]
[1758403370114,18.3899,4496.9,4496.8,8.37480359]
[1758403370519,18.3899,4496.9,4496.8,12.05580359]
[1758403370812,18.152,4496.9,4496.8,12.05580359]
[1758403380586,18.152,4496.9,4496.8,12.84780359]
[1758403380761,18.152,4496.9,4496.8,14.7004757]
[1758403393497,18.152,4496.9,4496.8,14.6917757]
[1758403395543,18.152,4496.9,4496.8,14.4656757]
[1758403397127,18.152,4496.9,4496.8,10.7846757]
[1758403397430,18.3882,4496.9,4496.8,12.84680359]
[1758403398436,18.152,4496.9,4496.8,12.84680359]
[1758403407447,18.152,4496.9,4496.8,13.07550359]
[1758403414779,0.002,4497.0,4496.9,3.01575414]
[1758403414959,0.002,4497.0,4496.9,10.49469168]
[1758403415275,0.002,4497.0,4496.9,12.63758767]
[1758403415476,0.002,4497.0,4496.9,12.72670559]
[1758403430099,0.002,4497.5,4497.4,9.44750691]
[1758403430327,0.002,4497.5,4497.4,13.12750691]
[1758403430940,0.002,4497.5,4497.4,13.79582581]
[1758403431142,0.002,4497.5,4497.4,15.64512641]
[1758403440219,0.2282,4497.5,4497.4,15.64512641]
[1758403440414,0.002,4497.5,4497.4,15.64512641]
[1758403441550,0.002,4497.5,4497.4,11.96512641]
[1758403441743,0.002,4497.5,4497.4,15.64412641]
[1758403442382,0.2282,4497.5,4497.4,11.96512641]
[1758403442735,0.2282,4497.5,4497.4,15.64412641]
[1758403443138,0.2282,4497.5,4497.4,11.96512641]
[1758403443350,0.2282,4497.5,4497.4,15.64412641]
[1758403444702,0.2282,4497.5,4497.4,14.58682581]
[1758403450614,0.002,4497.5,4497.4,14.58682581]
[1758403451817,0.002,4497.5,4497.4,14.82452581]
[1758403451996,0.002,4497.5,4497.4,14.58682581]
[1758403452307,0.002,4497.5,4497.4,14.82452581]
[1758403452480,0.002,4497.5,4497.4,16.75169642]
[1758403452803,0.002,4497.5,4497.4,18.67369642]
[1758403454504,0.002,4497.5,4497.4,18.66739642]
[1758403456793,0.002,4497.8,4497.6,6.01540803]
[1758403457093,0.002,4497.8,4497.7,13.93859218]
[1758403457294,0.002,4497.8,4497.7,16.23884757]
[1758403457625,0.002,4497.8,4497.7,16.90714117]
[1758403461829,0.002,4497.8,4497.7,16.90234969]
[1758403471472,0.002,4497.8,4497.7,16.83355069]
[1758403471771,0.002,4497.9,4497.8,9.36971869]
[1758403471977,0.002,4497.9,4497.8,10.95512279]
[1758403472146,0.002,4497.9,4497.8,11.18652279]
[1758403472346,0.002,4497.9,4497.8,10.95512279]
[1758403476673,0.002,4497.9,4497.8,15.65752279]
[1758403477041,0.2429,4498.8,4498.7,2.22286438]
[1758403477239,0.3679179,4499.2,4498.8,2.22281497]
[1758403477459,0.1250179,4499.1,4498.8,2.22281497]
[1758403477667,0.1250179,4499.0,4498.8,2.22281497]
[1758403477876,2.22219354,4500.1,4498.8,2.24504311]
[1758403478085,0.2529,4498.9,4498.8,2.24504311]
[1758403480609,0.2529,4498.9,4498.8,6.39145263]
[1758403480907,0.2529,4498.9,4498.8,6.36922449]
[1758403482310,0.37797283,4498.9,4498.8,6.36922449]
[1758403485209,0.37997283,4498.9,4498.8,6.36922449]